Cogmind - Beta 10.1 @@@ ROGUE MODE // 2020.10.06 @ 23:18:44 Player: Daniexpert Result: Destroyed by G-73 Enforcer with Phase Gun Performance ------------- Evolutions (7) 3500 Regions Visited (21) 4200 Robots Destroyed (233) 1165 Value Destroyed (13756) 13756 Prototype IDs (56) 1120 Alien Tech Used (1) 200 Bonus (10630) 10630 TOTAL SCORE: 34571 Bonus ------- Triggered Max Security 1000 High Alert Combat Kills 1145 Follower Combat Kills 3666 Entered Garrisons 1600 Used RIF Installer 4000 Aligned with FarCom 300 Friendly Fire -1081 Cogmind --------- Core Integrity 0/1300 Matter 300/300 Energy 73/100 System Corruption 60% Temperature Cool (18) Movement Core (50) Location -3/Quarantine Parts ------- > --- POWER (1) -------- (None) > --- PROPULSION (3) --- (None) > --- UTILITY (15) ----- (None) > --- WEAPON (2) ------- (None) > --- INVENTORY (4) ---- Improved Heavy Treads Heavy Armor Plating Peak State ------------ > --- POWER ------------ Micro Fission Core > --- PROPULSION ------- Enhanced Armored Medium Treads Improved Heavy Treads > --- UTILITY ---------- Large Storage Unit Large Storage Unit Large Storage Unit Large Storage Unit Energy Well Energy Well Advanced Target Analyzer Advanced Thermal Shield Improved Force Field Relay Coupler [Swarmer] Relay Coupler [Grunt] Relay Coupler [Duelist] Relay Coupler [Sentry] Relay Coupler [Hunter] Relay Coupler [Behemoth] > --- WEAPON ----------- Heavy Proton Cannon Improved Remote Datajack > --- INVENTORY -------- Improved Heavy Treads Flexi-carbon Leg Flexi-carbon Leg Compact Wheel Armored Wheel Armored Wheel Energy Well Energy Well Advanced Terrain Scanner Stasis Canceller Relay Coupler [NC] Relay Coupler [NC] Relay Coupler [NC] Relay Coupler [NC] Relay Coupler [NC] Relay Coupler [NC] Relay Coupler [NC] Relay Coupler [NC] Relay Coupler [Grunt] Relay Coupler [Grunt] Relay Coupler [Grunt] Relay Coupler [Grunt] Relay Coupler [Sentry] Mass Driver Improved Remote Datajack Improved Remote Datajack Power Sword [Rating: 109] Favorites ----------- Power Reinforced Fission Core Engine Improved Deuterium Engine Power Core Reinforced Fission Core Reactor Light Antimatter Reactor Propulsion Armored Wheel Treads Light Treads Wheel Armored Wheel Utility Large Storage Unit Device System Backup Module Storage Large Storage Unit Processor Improved Terrain Scan Processor Hackware Relay Coupler [NC] Protection Layered Light Armor Plating Weapon Improved KE Penetrator Energy Gun EM Shotgun Energy Cannon Improved EM Pulse Cannon Ballistic Gun Improved KE Penetrator Launcher Advanced EMP Blaster Special Weapon Remote Datajack Slashing Weapon Power Sword Piercing Weapon Spear Special Melee Weapon Improved Datajack Build | -11 -10 -10 -10 -9 -8 -8 -8 -8 -7 -7 -6 -6 -6 -6 -5 -5 -4 -4 -3 -3 -3 ------- Run | Scr Mat Min Exi Min Mat Gar Mat Gar Fac Gar Fac Gar Fac Gar Fac Gar Fac Gar Res Gar Qua Slots Evolved 14 | . . . . . 4 . . . 2 . 2 . . . 2 . 2 . 2 . . Power . | . . . . . . . . . . . . . . . . . . . . . . Propulsion 1 | . . . . . . . . . . . 1 . . . . . . . . . . Utility 13 | . . . . . 4 . . . 2 . 1 . . . 2 . 2 . 2 . . Weapon . | . . . . . . . . . . . . . . . . . . . . . . Parts Attached 459 | 8 15 1 4 2 19 30 25 15 17 26 11 29 8 29 19 28 35 36 66 29 7 Power 24 | 1 . 1 . . 3 2 . 1 1 1 1 . 2 1 1 2 . 2 2 2 1 Engine 15 | 1 . 1 . . 3 2 . 1 1 1 1 . 2 1 . . . 1 . . . Core 6 | . . . . . . . . . . . . . . . 1 2 . 1 1 1 . Reactor 3 | . . . . . . . . . . . . . . . . . . . 1 1 1 Propulsion 103 | 3 3 . 2 . 6 9 12 2 . 3 1 3 1 14 5 4 7 8 14 2 4 Treads 28 | 2 2 . 1 . 1 2 4 . . . . . . . 1 2 3 1 6 2 1 Leg . | . . . . . . . . . . . . . . . . . . . . . . Wheel 75 | 1 1 . 1 . 5 7 8 2 . 3 1 3 1 14 4 2 4 7 8 . 3 Hover . | . . . . . . . . . . . . . . . . . . . . . . Flight . | . . . . . . . . . . . . . . . . . . . . . . Utility 168 | 2 3 . 2 . 6 10 6 9 7 6 7 13 2 7 7 11 11 17 20 20 2 Device 35 | . . . . . 1 5 . 1 1 . 3 1 . 1 2 4 2 2 4 8 . Storage 36 | 2 3 . 2 . 2 2 3 2 . . 3 6 1 4 . . . 3 1 2 . Processor 2 | . . . . . . . . . . . . . . . . . 1 . 1 . . Hackware 51 | . . . . . . . 1 3 2 4 . 4 1 2 . 1 4 9 9 9 2 Protection 44 | . . . . . 3 3 2 3 4 2 1 2 . . 5 6 4 3 5 1 . Artifact . | . . . . . . . . . . . . . . . . . . . . . . Weapon 164 | 2 9 . . 2 4 9 7 3 9 16 2 13 3 7 6 11 17 9 30 5 . Energy Gun 39 | 2 3 . . 2 4 4 2 . 1 . . 3 . 1 1 1 . 2 12 1 . Energy Cannon 28 | . . . . . . 1 2 . 3 5 1 2 1 3 1 3 1 . 3 2 . Ballistic Gun 27 | . 4 . . . . 2 1 1 . 1 . 2 . . 1 1 6 2 6 . . Ballistic Cannon . | . . . . . . . . . . . . . . . . . . . . . . Launcher 27 | . 2 . . . . 2 . 1 . 4 . 1 1 2 2 5 2 2 3 . . Special Weapon 24 | . . . . . . . . . 1 2 1 4 1 . . 1 5 3 5 1 . Impact Weapon . | . . . . . . . . . . . . . . . . . . . . . . Slashing Weapon 7 | . . . . . . . 1 . . . . 1 . 1 1 . 1 . 1 1 . Piercing Weapon 8 | . . . . . . . . . 4 4 . . . . . . . . . . . Special Melee Weapon 4 | . . . . . . . 1 1 . . . . . . . . 2 . . . . Unidentified Prototypes 10 | . . . . . 4 . . 1 1 . . . . . . . 1 1 2 . . Parts Lost 107 | . 3 1 . . 1 4 9 1 . 4 . 1 1 3 13 3 3 15 39 2 4 Power 9 | . . 1 . . . 2 1 . . . . . . . . . . 2 3 . . Propulsion 34 | . 1 . . . . . 2 . . 3 . . . . 5 2 2 7 9 2 1 Utility 31 | . . . . . . . 1 . . . . 1 . 1 4 1 1 4 16 . 2 Weapon 33 | . 2 . . . 1 2 5 1 . 1 . . 1 2 4 . . 2 11 . 1 Highest Loss Streak 19 | . 3 1 . . 1 3 3 1 . 2 . 1 1 3 10 1 1 8 19 2 4 Average Slot Usage (%) 96 | . 100 100 98 85 87 90 97 98 96 98 97 99 99 99 98 99 99 98 83 85 93 Engine 5 | . 14 14 14 14 8 9 9 9 7 7 6 6 6 6 4 . . . . . . Core 1 | . . . . . . . . . . . . . . . . 4 5 4 3 1 . Treads 3 | . 23 14 14 14 4 . 1 . . . . . . . . 4 1 4 2 8 . Wheel 13 | . 4 14 14 14 13 17 16 18 15 13 18 20 20 20 15 11 12 10 10 . 13 Device 2 | . . . . . 1 4 . 1 2 . 3 . . 2 3 3 4 7 1 6 2 Storage 33 | . 28 28 26 14 18 33 44 33 38 38 33 34 39 41 41 41 36 31 28 20 18 Hackware 13 | . . . . . . . 2 15 13 22 20 23 20 15 9 10 16 21 20 26 35 Protection 4 | . . . . . 22 6 4 4 5 . 1 . . . 7 6 5 5 6 2 4 Energy Gun 3 | . 11 . . 26 17 10 7 . . . . . . . . 3 . 3 1 1 3 Energy Cannon 2 | . . . . . . . 1 1 . 4 6 3 4 10 4 1 1 . 1 1 . Ballistic Gun 4 | . 16 28 28 1 . 7 8 2 . . . 2 . . . 4 6 4 1 . . Special Weapon 1 | . . . . . . . . . 4 4 5 4 5 . . . 1 . 2 3 4 Naked Turns 4 | . . . . . . . . . . . . . . . . . . . . . 4 Heaviest Build 218 | 17 40 39 87 91 135 175 175 108 127 128 136 164 167 189 202 208 193 198 218 121 114 Greatest Support 110 | 40 40 10 40 10 24 28 32 24 24 24 36 36 36 36 36 40 40 44 110 110 40 Greatest Overweight (x) 38 | . 3 3 8 9 12 13 7 4 5 9 5 4 6 6 16 12 15 14 38 1 4 Average Overweight (x) 4 | . . 3 4 8 7 7 4 3 4 4 3 3 4 4 5 5 5 4 3 . 2 Largest Inventory Capacity 52 | 8 16 16 24 24 36 50 50 36 36 36 42 46 46 52 52 52 52 52 52 28 28 Average Capacity 39 | 6 12 16 17 24 30 41 38 28 36 36 36 40 45 47 52 52 52 47 44 28 26 Most Carried 52 | 6 16 16 18 24 31 50 50 33 36 36 38 46 46 52 52 52 52 52 52 28 28 Average Carried 38 | 4 11 15 15 23 27 38 37 26 35 35 35 40 45 46 51 50 51 46 42 27 26 Final Capacity 52 | 8 16 16 24 24 36 50 36 36 36 36 38 46 46 52 52 52 52 52 28 28 4 Final Carried 52 | 6 16 16 18 24 31 50 35 33 36 35 38 46 46 52 52 52 52 50 27 28 4 Class Distribution -------------------- 30% | Botlord-Mutant 29% | Hauler-Mutant 23% | Bothacker-Mutant 8% | Mutant Dominant Class ---------------- Mutant | -10/Materials Mutant | -10/Mines Mutant | -10/Exiles Hauler-Mutant | -9/Mines Hauler-Mutant | -8/Materials Hauler-Mutant | -8/Garrison Bothacker-Mutant | -8/Materials Bothacker-Mutant | -8/Garrison Bothacker-Mutant | -7/Factory Bothacker-Mutant | -7/Garrison Bothacker-Mutant | -6/Factory Bothacker-Mutant | -6/Garrison Botlord-Mutant | -6/Factory Hauler-Mutant | -6/Garrison Hauler-Mutant | -5/Factory Hauler-Mutant | -5/Garrison Botlord-Mutant | -4/Factory Botlord-Mutant | -4/Garrison Botlord-Mutant | -3/Research Botlord-Mutant | -3/Garrison Botlord-Mutant | -3/Quarantine Resources | -11 -10 -10 -10 -9 -8 -8 -8 -8 -7 -7 -6 -6 -6 -6 -5 -5 -4 -4 -3 -3 -3 ----------- Run | Scr Mat Min Exi Min Mat Gar Mat Gar Fac Gar Fac Gar Fac Gar Fac Gar Fac Gar Res Gar Qua Matter Collected 8518 | 280 275 25 . 24 236 485 470 317 352 418 196 605 177 502 225 703 694 755 1079 561 139 Remotely 70 | . . . . . . . . . . . . . . . . . . . 70 . . Salvage Created 13195 | 145 750 101 . 76 653 1235 1135 117 364 468 197 902 642 1461 1195 889 990 425 1285 155 10 Parts 610 | 8 50 6 . 3 36 54 52 7 18 20 3 31 43 39 43 44 61 19 69 2 2 Haulers Intercepted 12 | . 2 . . . 4 . 5 . . . 1 . . . . . . . . . . Recyclers Shooed 12 | . . . . . 1 . . . . . . . . . . . 3 . 8 . . Parts Field Recycled . | . . . . . . . . . . . . . . . . . . . . . . Retrieved Matter . | . . . . . . . . . . . . . . . . . . . . . . Parts Self-Destructed . | . . . . . . . . . . . . . . . . . . . . . . Prevented . | . . . . . . . . . . . . . . . . . . . . . . Kills | -11 -10 -10 -10 -9 -8 -8 -8 -8 -7 -7 -6 -6 -6 -6 -5 -5 -4 -4 -3 -3 -3 ------- Run | Scr Mat Min Exi Min Mat Gar Mat Gar Fac Gar Fac Gar Fac Gar Fac Gar Fac Gar Res Gar Qua Combat Hostiles Destroyed 172 | . 15 2 . . 5 22 14 6 5 15 2 4 6 12 15 17 11 3 15 2 1 Melee 9 | . . . . . . . 1 . 2 3 . . . . . . . . 2 . 1 Guns 75 | . 8 2 . . 5 13 13 1 . . . 2 . . 3 8 9 1 10 . . Cannons 24 | . . . . . . . . . 2 7 2 . . 5 5 2 . . 1 . . AOE 47 | . 7 . . . . 9 . 5 . 5 . 2 2 5 2 7 . 2 1 . . Classes Destroyed 19 | 2 6 . . . 2 1 . 1 1 1 . . 1 . 1 1 . . 1 . 1 Worker 7 | . 1 . . . 1 . . . . . . . 1 . . . 2 . 2 . . Builder 13 | . . . . . . . . . . . . . 8 . 2 . 3 . . . . Tunneler 3 | 2 1 . . . . . . . . . . . . . . . . . . . . Hauler 12 | . 2 . . . 4 . 5 . . . 1 . . . . . . . . . . Recycler 14 | 1 1 . . 1 1 . 3 . 2 . . . . . 1 . 1 . 3 . . Carrier 1 | . . . . . 1 . . . . . . . . . . . . . . . . Operator 2 | . 1 . . . . . 1 . . . . . . . . . . . . . . Watcher 4 | . 2 . . . 1 . . . . . . . . . . . . . 1 . . Swarmer 35 | . 3 . . . 3 7 3 4 . 6 . 1 . 2 . 4 . 2 . . . Saboteur 1 | . . . . . . . . . . . . . . . . . . . . . 1 Grunt 56 | . 12 2 . . . 9 5 1 2 7 1 1 4 4 6 1 . . 1 . . Brawler 4 | . . . . . . . . 1 . . . 1 . 1 1 . . . . . . Duelist 9 | . . . . . . . . . . 1 . 1 . . 1 4 . . . 2 . Protector 1 | . . . . . . . . . . . . . . . 1 . . . . . . Sentry 24 | . . . . . 2 5 4 . . . . . 3 4 3 1 2 . . . . Specialist 5 | . . . . . . . . . . . . . . . . 5 . . . . . Hunter 11 | . . . . . . 1 2 . . . . . . 1 1 2 3 . 1 . . Programmer 30 | . . . . . . . . . 3 1 1 1 . 1 3 . 7 1 12 . . Behemoth 1 | . . . . . . . . . . . . . . . . . . . 1 . . Best Kill Streak 10 | 2 6 1 . 1 4 6 4 5 2 3 1 2 9 6 10 5 6 2 7 1 1 Combat Bots Only 7 | . 4 1 . . 3 6 4 5 1 3 1 2 4 6 7 5 2 2 3 1 1 Max Kills in Single Turn 4 | 1 2 1 . 1 1 4 1 2 1 2 1 1 4 2 2 2 3 2 3 1 1 Gunslinging . | . . . . . . . . . . . . . . . . . . . . . . Exploded 4 | . 2 . . . . 4 . 2 . 2 . 1 1 2 2 2 . 2 1 . . Melee 1 | . . . . . . . 1 . 1 1 . . . . . . . . 1 . 1 Uniques/NPCs Destroyed . | . . . . . . . . . . . . . . . . . . . . . . Combat | -11 -10 -10 -10 -9 -8 -8 -8 -8 -7 -7 -6 -6 -6 -6 -5 -5 -4 -4 -3 -3 -3 -------- Run | Scr Mat Min Exi Min Mat Gar Mat Gar Fac Gar Fac Gar Fac Gar Fac Gar Fac Gar Res Gar Qua Damage Taken 24632 | 18 701 169 . 24 175 1107 1409 593 325 919 196 503 545 934 2642 1217 1452 3339 7248 295 821 Core 3884 | . 90 69 . . 12 149 255 90 30 180 18 98 74 143 451 84 134 697 1062 78 170 Absorbed by Shields 183 | . . . . . . . . . . . . . . . . 10 . 12 . 152 9 Reduced by Siege Mode 25 | . . . . . . . . . . . . . . . . . . . 25 . . Core Remaining (%) 49 | 100 . . . 36 . . . 8 . 70 . . . 60 . 46 . 27 . . . Volleys Fired 944 | 6 60 10 . 2 29 85 65 19 29 40 28 94 26 62 47 66 72 72 90 28 14 Largest 2 | 2 2 2 . 2 2 2 2 1 1 1 1 2 1 2 2 2 2 2 2 1 1 Hottest 178 | 80 80 40 . 90 106 120 118 68 120 120 120 116 120 99 178 138 140 101 140 94 94 Shots Fired 1340 | 12 112 20 . 4 58 117 125 21 29 40 28 104 25 92 76 118 102 84 131 29 13 Gun 800 | 12 105 20 . 4 58 102 121 9 . . . 41 . 1 30 70 68 57 96 2 4 Cannon 267 | . . . . . . 4 4 1 8 17 17 30 6 76 38 34 13 . 10 9 . Launcher 101 | . 7 . . . . 11 . 11 . 11 . 2 13 11 8 14 3 5 5 . . Special 172 | . . . . . . . . . 21 12 11 31 6 4 . . 18 22 20 18 9 Kinetic 439 | . 70 20 . . . 22 61 9 . . . 33 . . 10 52 68 29 65 . . Thermal 249 | . . . . . 2 13 17 1 8 16 17 8 1 30 57 34 13 . 26 2 4 Explosive 59 | . 7 . . . . 11 . 11 . 11 . 2 . 5 . 7 . . 5 . . Electromagnetic 421 | 12 35 . . 4 56 71 47 . . 1 . 30 18 53 9 25 3 33 15 9 . Robot Hit Streak 21 | 5 8 12 . 7 10 20 11 4 7 12 8 20 9 14 11 21 15 12 14 6 8 Robot Miss Streak 5 | 1 3 3 . 1 4 3 4 2 2 1 4 3 1 2 2 2 5 4 4 2 1 Penetration Max 1 | . . . . . . 1 . . . . . 1 . . 1 1 1 . 1 . . Secondary Targets 6 | . . . . . 1 3 2 . . . . . . . . . . . . . . Max Gunslinging Chain 1 | . . . . . 1 1 1 . . . . . . . . . . . . . . Shots Hit Robots 907 | 9 75 14 . 4 44 89 91 14 25 23 18 59 16 44 51 78 69 60 94 20 10 Core Hits 477 | 4 40 6 . 2 27 65 36 12 7 26 2 24 22 35 27 45 35 22 37 2 1 Critical Hits 37 | . 2 . . . . 1 . . . 1 . . . . . 6 11 3 11 2 . Critical Kills 9 | . . . . . . 1 . . . . . . . . . . 3 . 5 . . Critical Parts Destroyed 28 | . 2 . . . . . . . . 1 . . . . . 6 8 3 6 2 . Melee Attacks 91 | . . . . . . . 9 11 8 11 . 13 . 19 4 . 7 . 8 1 . Impact . | . . . . . . . . . . . . . . . . . . . . . . Slashing 52 | . . . . . . . 3 . . . . 13 . 19 4 . 4 . 8 1 . Piercing 18 | . . . . . . . . . 7 11 . . . . . . . . . . . Sneak Attacks 12 | . . . . . . . 3 . 5 . . . . 1 2 . 1 . . . . Combat Hostiles 4 | . . . . . . . 2 . 2 . . . . . . . . . . . . Follow-up Attacks . | . . . . . . . . . . . . . . . . . . . . . . Damage Inflicted 28437 | 164 1418 106 . 42 642 2463 1567 484 860 1257 450 1566 1304 2839 2761 3048 2129 1674 3391 192 80 Guns 11268 | 144 724 106 . 42 538 1458 1244 105 . . . 582 . . 441 1133 1492 823 2356 . 80 Cannons 5333 | . . . . . . 105 20 . 344 397 450 705 127 905 1236 610 71 . 171 192 . Explosions 10113 | 20 677 . . . 73 900 91 379 . 741 . 279 1177 1826 789 1305 425 851 580 . . Melee 1643 | . . . . . . . 186 . 516 119 . . . 108 295 . 141 . 278 . . Ramming 80 | . 17 . . . 31 . 26 . . . . . . . . . . . 6 . . Kinetic 7018 | . 420 106 . . . 395 716 105 . . . 445 . . 172 954 1492 478 1735 . . Thermal 5953 | 20 106 . . . 111 342 243 . 344 397 450 266 132 321 1521 610 171 214 625 . 80 Explosive 4774 | . 571 . . . . 763 . 379 . 741 . 150 . 711 . 879 . . 580 . . Electromagnetic 8969 | 144 304 . . 42 500 963 396 . . . . 705 1172 1699 773 605 325 982 167 192 . Impact . | . . . . . . . . . . . . . . . . . . . . . . Slashing 1008 | . . . . . . . 186 . . . . . . 108 295 . 141 . 278 . . Piercing 635 | . . . . . . . . . 516 119 . . . . . . . . . . . Highest Corruption 60 | . . . . . 2 2 10 10 . . 2 2 9 9 8 9 8 16 58 58 60 Average Corruption 12 | . . . . . 1 2 4 10 . . 1 1 8 5 6 4 3 9 34 58 58 Corruption Purged 36 | . . . . . . . . . . . . 2 . 9 . 9 . 16 . . . Effects 627 | . . . . . 2 18 45 52 . . 7 2 11 52 6 47 18 117 82 143 25 Message Errors 107 | . . . . . . 2 12 13 . . 3 1 1 11 2 10 4 22 4 21 1 Matter Fused 97 | . . . . . . . 5 13 . . . . 3 12 . 11 3 26 6 16 2 Heat Flow Errors 57 | . . . . . . 6 4 3 . . . . . 7 1 5 3 13 4 8 3 Energy Discharges 71 | . . . . . 1 . 5 5 . . 1 . 2 6 . 1 1 19 6 21 3 Parts Rejected 3 | . . . . . . . . . . . . . 1 . . . . . 1 . 1 Data Loss (minor) 72 | . . . . . 1 8 6 2 . . 1 1 1 8 1 8 4 14 8 7 2 Data Loss (major) 25 | . . . . . . . 1 3 . . . . 1 3 . 6 . 6 2 3 . Misfires 9 | . . . . . . . 1 2 . . . . . 1 . 1 . 1 1 2 . Alerts 7 | . . . . . . . . 1 . . . . . . . . . 3 . 3 . Misdirections 78 | . . . . . . . 2 7 . . . . . . . . . 7 12 46 4 Targeting Errors 86 | . . . . . . 2 6 3 . . 2 . 1 4 2 5 1 4 33 15 8 Weapon Failures 15 | . . . . . . . 3 . . . . . 1 . . . 2 2 5 1 1 Overload Shots 15 | . . . . . . . . . . . . . . . 15 . . . . . . Effects 1 | . . . . . . . . . . . . . . . 1 . . . . . . Energy Bleed 1 | . . . . . . . . . . . . . . . 1 . . . . . . Overflow Damage 832 | . 140 . . . . 10 . 7 138 30 78 . 29 2 177 117 37 . 67 . . Projectiles 276 | . . . . . . . . . 36 2 78 . . 2 100 51 7 . . . . Explosions 383 | . 140 . . . . 10 . 7 . 28 . . 29 . 6 66 30 . 67 . . Melee 173 | . . . . . . . . . 102 . . . . . 71 . . . . . . Knockbacks . | . . . . . . . . . . . . . . . . . . . . . . Impact . | . . . . . . . . . . . . . . . . . . . . . . Kinetic . | . . . . . . . . . . . . . . . . . . . . . . Secondary . | . . . . . . . . . . . . . . . . . . . . . . Self-Inflicted Damage 603 | 18 103 . . . 50 37 46 50 . 22 . 62 21 . 112 36 20 12 14 . . Shots 22 | 1 3 . . . 1 1 1 2 . 1 . 2 2 . 3 2 1 1 1 . . Rammed 11 | . 6 . . . 3 . 1 . . . . . . . . . . . 1 . . Targets Rammed 11 | . 6 . . . 3 . 1 . . . . . . . . . . . 1 . . Kicked . | . . . . . . . . . . . . . . . . . . . . . . Crushed . | . . . . . . . . . . . . . . . . . . . . . . Highest Temperature 369 | 54 91 18 . 30 249 369 270 240 288 204 240 90 60 221 270 344 329 194 311 247 203 Average Temperature 80 | 25 23 11 . 17 65 144 78 75 82 67 120 25 18 36 90 122 122 56 92 54 88 Received Heat Transfer 3363 | . 309 102 . . 27 387 387 162 45 123 . 126 201 249 420 21 27 341 249 52 135 Effects 8 | . . . . . . 3 . . . . . . . . . 3 1 . 1 . . Shutdowns 1 | . . . . . . 1 . . . . . . . . . . . . . . . Energy Bleed 2 | . . . . . . . . . . . . . . . . . 1 . 1 . . Interference 2 | . . . . . . . . . . . . . . . . 2 . . . . . Matter Decay 1 | . . . . . . . . . . . . . . . . 1 . . . . . Damage (minor) 2 | . . . . . . 2 . . . . . . . . . . . . . . . Siege Activations 1 | . . . . . . . . . . . . . . . . . . . 1 . . Total Turns 14 | . . . . . . . . . . . . . . . . . . . 14 . . Longest Duration 14 | . . . . . . . . . . . . . . . . . . . 14 . . Robots Corrupted 38 | . . . . . 1 5 . . . . . 3 4 10 5 3 2 2 1 2 . Combat Hostiles 16 | . . . . . . . . . . . . . 4 2 5 . 2 . 1 2 . Parts Fried 55 | 2 3 . . . . 3 1 . . . . 2 8 6 11 4 6 3 1 5 . Impact Corruptions . | . . . . . . . . . . . . . . . . . . . . . . Robots Melted 2 | . . . . . . . . . 1 . 1 . . . . . . . . . . Combat Hostiles 1 | . . . . . . . . . 1 . . . . . . . . . . . . Parts Melted 17 | . . . . . . . . . 2 4 4 . . . 3 2 . . 2 . . Heat Transferred 7931 | . 100 . . . 124 575 346 . 640 751 788 385 200 444 1648 605 174 300 740 . 111 Parts Sabotaged . | . . . . . . . . . . . . . . . . . . . . . . Parts Stolen . | . . . . . . . . . . . . . . . . . . . . . . Parts Stripped . | . . . . . . . . . . . . . . . . . . . . . . Power Chain Reactions 17 | 1 . . . . 2 1 2 . . . . 1 3 . 1 2 1 3 . . . Missiles Intercepted . | . . . . . . . . . . . . . . . . . . . . . . Alert | -11 -10 -10 -10 -9 -8 -8 -8 -8 -7 -7 -6 -6 -6 -6 -5 -5 -4 -4 -3 -3 -3 ------- Run | Scr Mat Min Exi Min Mat Gar Mat Gar Fac Gar Fac Gar Fac Gar Fac Gar Fac Gar Res Gar Qua Peak Influence 1600 | 15 217 107 . 5 124 788 527 491 257 628 504 1072 584 942 679 981 777 353 167 67 1600 Initial 562 | . 9 41 . . 1 63 384 289 257 105 329 111 562 105 494 347 514 291 109 . 36 Average 339 | 6 85 82 . . 40 557 425 397 145 487 331 503 373 517 509 587 447 107 72 37 1557 Maximum Alert Level 5 | . 1 . . . . 3 2 2 1 2 2 3 2 3 2 3 3 1 . . 5 Low Security (%) 39 | 100 95 100 . 100 100 6 . . 64 5 13 17 33 6 . . . 93 100 100 . Level 1 22 | . 4 . . . . 4 39 61 35 20 68 39 19 53 . 2 47 6 . . . Level 2 25 | . . . . . . 57 60 38 . 74 17 2 46 3 100 79 48 . . . . Level 3 11 | . . . . . . 31 . . . . . 39 . 36 . 18 3 . . . . Level 4 . | . . . . . . . . . . . . . . . . . . . . . . Level 5 . | . . . . . . . . . . . . . . . . . . . . . . High Security . | . . . . . . . . . . . . . . . . . . . . . . Max Security . | . . . . . . . . . . . . . . . . . . . . . 99 Squads Dispatched 51 | . 2 . . . . . 5 . 3 . 2 . 4 . 10 . 9 . 8 . 8 Investigation 7 | . 2 . . . . . 2 . . . . . 1 . . . 2 . . . . Extermination 15 | . . . . . . . . . 2 . 1 . 1 . 3 . 4 . 4 . . Reinforcement 12 | . . . . . . . 2 . 1 . 1 . 2 . 1 . 3 . 1 . 1 Assault 9 | . . . . . . . 1 . . . . . . . 1 . . . . . 7 Garrison 8 | . . . . . . . . . . . . . . . 5 . . . 3 . . Intercept . | . . . . . . . . . . . . . . . . . . . . . . Construction Impeded 3 | . . . . . . . . . . . . . 1 . 1 . . . 1 . . Haulers Reinforced 3 | . . . . . . . . . . . 1 . 1 . . . 1 . . . . Alert ID Control Effect 41 | . . . . . . . . . . . . . . 3 2 . 10 3 4 9 10 Stealth | -11 -10 -10 -10 -9 -8 -8 -8 -8 -7 -7 -6 -6 -6 -6 -5 -5 -4 -4 -3 -3 -3 --------- Run | Scr Mat Min Exi Min Mat Gar Mat Gar Fac Gar Fac Gar Fac Gar Fac Gar Fac Gar Res Gar Qua Distress Signals 12 | . 1 . . . . . 3 . . . . . . 3 . . 2 . 1 . 2 Communications Jammed . | . . . . . . . . . . . . . . . . . . . . . . Distress Signals . | . . . . . . . . . . . . . . . . . . . . . . Times Spotted 478 | . 27 2 . . 10 28 35 14 12 29 4 28 12 31 24 29 30 30 47 26 60 Peak Tracking Total 19 | . 6 2 . . 3 7 7 7 3 7 2 4 5 10 9 6 4 13 8 9 19 Tactical Retreats 36 | . 1 . . . . 9 2 1 . 3 . 4 . 1 2 7 . 3 2 . 1 Traps | -11 -10 -10 -10 -9 -8 -8 -8 -8 -7 -7 -6 -6 -6 -6 -5 -5 -4 -4 -3 -3 -3 ------- Run | Scr Mat Min Exi Min Mat Gar Mat Gar Fac Gar Fac Gar Fac Gar Fac Gar Fac Gar Res Gar Qua Traps Triggered 56 | . 1 . . 1 2 5 . 4 1 6 2 6 6 6 3 5 . 4 . 2 2 Indirectly 5 | . . . . . . . . . . . . . . . 3 . . 2 . . . Trap Hack Attempts 7 | . . . . . . . . 7 . . . . . . . . . . . . . Triggered . | . . . . . . . . . . . . . . . . . . . . . . Disarmed . | . . . . . . . . . . . . . . . . . . . . . . Reprogrammed 7 | . . . . . . . 6 1 . . . . . . . . . . . . . Reused 1 | . . . . . . . 1 . . . . . . . . . . . . . . Traps Extracted . | . . . . . . . . . . . . . . . . . . . . . . Installed 2 | . . . . . . . 2 . . . . . . . . . . . . . . Triggered 4 | . . . . . . . 2 . . . . . . . 1 . . 1 . . . Machines | -11 -10 -10 -10 -9 -8 -8 -8 -8 -7 -7 -6 -6 -6 -6 -5 -5 -4 -4 -3 -3 -3 ---------- Run | Scr Mat Min Exi Min Mat Gar Mat Gar Fac Gar Fac Gar Fac Gar Fac Gar Fac Gar Res Gar Qua Machines Disabled 58 | . 2 . . . . 3 4 1 . 4 5 5 3 5 . 3 13 4 2 3 1 Max in Single Turn 6 | . 2 . . . . 1 2 1 . 1 . 1 . 1 . 2 6 1 1 1 1 Garrison Relay 23 | . . . . . . 3 . 1 . 2 . 5 . 4 . 1 . 4 . 3 . Phase Generator 1 | . . . . . . . . . . . . . . . . 1 . . . . . Machines Sabotaged . | . . . . . . . . . . . . . . . . . . . . . . Garrisons Compromised . | . . . . . . . . . . . . . . . . . . . . . . Overloaded Fab Kills . | . . . . . . . . . . . . . . . . . . . . . . Fab Network Shutdowns . | . . . . . . . . . . . . . . . . . . . . . . Hacking | -11 -10 -10 -10 -9 -8 -8 -8 -8 -7 -7 -6 -6 -6 -6 -5 -5 -4 -4 -3 -3 -3 --------- Run | Scr Mat Min Exi Min Mat Gar Mat Gar Fac Gar Fac Gar Fac Gar Fac Gar Fac Gar Res Gar Qua Machines Accessed 52 | . 9 1 2 1 3 . 8 . 4 . 3 . 5 . 3 . 9 . 4 . . Terminals 34 | . 8 1 . . 1 . 5 . 2 . 2 . 4 . 2 . 6 . 3 . . Fabricators 1 | . . . . . . . . . . . . . . . . . 1 . . . . Repair Stations 4 | . 1 . . . 1 . 2 . . . . . . . . . . . . . . Recycling Units 1 | . . . . . . . . . 1 . . . . . . . . . . . . Scanalyzers . | . . . . . . . . . . . . . . . . . . . . . . Garrison Access 9 | . . . . . 1 . 1 . 1 . 1 . 1 . 1 . 2 . 1 . . Total Hacks 136 | . 32 5 2 1 11 . 22 . 4 . 8 . 14 . 6 . 24 . 7 . . Successful 76 | . 19 3 2 1 10 . 14 . 2 . 4 . 9 . 2 . 7 . 3 . . Failed 60 | . 13 2 . . 1 . 8 . 2 . 4 . 5 . 4 . 17 . 4 . . Catastrophic 11 | . . . . . . . 2 . . . 1 . 1 . 1 . 4 . 2 . . Database Lockouts . | . . . . . . . . . . . . . . . . . . . . . . Manual 81 | . 20 3 1 . 6 . 8 . 2 . 7 . 6 . 5 . 17 . 6 . . Terminals 106 | . 29 5 . . 6 . 17 . 2 . 7 . 13 . 5 . 17 . 5 . . Fabricators 2 | . . . . . . . . . . . . . . . . . 2 . . . . Repair Stations 9 | . 3 . . . 2 . 4 . . . . . . . . . . . . . . Recycling Units 1 | . . . . . . . . . 1 . . . . . . . . . . . . Scanalyzers . | . . . . . . . . . . . . . . . . . . . . . . Garrison Access 15 | . . . . . 3 . 1 . 1 . 1 . 1 . 1 . 5 . 2 . . Terminal Hacks 37 | . 11 3 2 1 2 . 7 . . . 2 . 6 . . . 2 . 1 . . Record 1 | . . . 1 . . . . . . . . . . . . . . . . . . Robot Analysis 2 | . 2 . . . . . . . . . . . . . . . . . . . . Prototype ID Bank 6 | . 3 1 . . 1 . . . . . . . 1 . . . . . . . . Open Door 1 | . . . . 1 . . . . . . . . . . . . . . . . . Terminal Index 4 | . . . . . . . 1 . . . 1 . 1 . . . . . 1 . . Alert Level 2 | . . . . . . . 2 . . . . . . . . . . . . . . Unreport Threat 8 | . 2 . . . . . . . . . 1 . 3 . . . 2 . . . . Locate Traps 5 | . 2 1 . . . . 2 . . . . . . . . . . . . . . Reprogram Traps 1 | . . . . . . . 1 . . . . . . . . . . . . . . Recall Reinforcements 1 | . . . . . . . . . . . . . 1 . . . . . . . . Hauler Manifests 1 | . 1 . . . . . . . . . . . . . . . . . . . . Zone Layout 4 | . 1 1 . . 1 . 1 . . . . . . . . . . . . . . EX-Prototype ID Bank 1 | . . . 1 . . . . . . . . . . . . . . . . . . Fabricator Hacks . | . . . . . . . . . . . . . . . . . . . . . . Repair Station Hacks 8 | . 3 . . . 2 . 3 . . . . . . . . . . . . . . Scan Component 5 | . 2 . . . 1 . 2 . . . . . . . . . . . . . . Repair 3 | . 1 . . . 1 . 1 . . . . . . . . . . . . . . Recycling Unit Hacks 1 | . . . . . . . . . 1 . . . . . . . . . . . . Retrieve Matter 1 | . . . . . . . . . 1 . . . . . . . . . . . . Scanalyzer . | . . . . . . . . . . . . . . . . . . . . . . Garrison Access Hacks 9 | . . . . . 1 . 1 . 1 . 1 . 1 . 1 . 2 . 1 . . Unlock Access 9 | . . . . . 1 . 1 . 1 . 1 . 1 . 1 . 2 . 1 . . Unauthorized Hacks 21 | . 5 . . . 5 . 3 . . . 1 . 2 . 1 . 3 . 1 . . Terminals 17 | . 5 . . . 3 . 3 . . . 1 . 2 . 1 . 1 . 1 . . Track 4 | . 2 . . . 1 . 1 . . . . . . . . . . . . . . Assimilate 1 | . . . . . . . . . . . . . . . 1 . . . . . . Botnet 9 | . 2 . . . 1 . 1 . . . 1 . 2 . . . 1 . 1 . . Operators 3 | . 1 . . . 1 . 1 . . . . . . . . . . . . . . Fabricators . | . . . . . . . . . . . . . . . . . . . . . . Repair Stations . | . . . . . . . . . . . . . . . . . . . . . . Recycling Units . | . . . . . . . . . . . . . . . . . . . . . . Scanalyzers . | . . . . . . . . . . . . . . . . . . . . . . Garrison Access 4 | . . . . . 2 . . . . . . . . . . . 2 . . . . Reprogram 2 | . . . . . 1 . . . . . . . . . . . 1 . . . . Watchers 2 | . . . . . 1 . . . . . . . . . . . 1 . . . . Data Cores Recovered . | . . . . . . . . . . . . . . . . . . . . . . Used . | . . . . . . . . . . . . . . . . . . . . . . Hacking Detections 44 | . 8 1 . . 3 . 6 . 4 . 2 . 5 . 3 . 8 . 4 . . Full Trace Events 6 | . 2 . . . . . 1 . . . . . 1 . . . 2 . . . . Feedback Events . | . . . . . . . . . . . . . . . . . . . . . . Feedback Blocked . | . . . . . . . . . . . . . . . . . . . . . . Robot Schematics Acquired . | . . . . . . . . . . . . . . . . . . . . . . Robots Built . | . . . . . . . . . . . . . . . . . . . . . . Matter . | . . . . . . . . . . . . . . . . . . . . . . Time . | . . . . . . . . . . . . . . . . . . . . . . Total Robot Build Rating . | . . . . . . . . . . . . . . . . . . . . . . Part Schematics Acquired . | . . . . . . . . . . . . . . . . . . . . . . Parts Built . | . . . . . . . . . . . . . . . . . . . . . . Matter . | . . . . . . . . . . . . . . . . . . . . . . Time . | . . . . . . . . . . . . . . . . . . . . . . Total Part Build Rating . | . . . . . . . . . . . . . . . . . . . . . . Parts Repaired 3 | . 1 . . . 1 . 1 . . . . . . . . . . . . . . Time 105 | . 26 . . . 26 . 53 . . . . . . . . . . . . . . Parts Recycled . | . . . . . . . . . . . . . . . . . . . . . . Recycled Matter . | . . . . . . . . . . . . . . . . . . . . . . Retrieved Matter . | . . . . . . . . . . . . . . . . . . . . . . Retrieved Components . | . . . . . . . . . . . . . . . . . . . . . . Parts Scanalyzed . | . . . . . . . . . . . . . . . . . . . . . . Part Schematics Acquired . | . . . . . . . . . . . . . . . . . . . . . . Parts Damaged . | . . . . . . . . . . . . . . . . . . . . . . Bothacking | -11 -10 -10 -10 -9 -8 -8 -8 -8 -7 -7 -6 -6 -6 -6 -5 -5 -4 -4 -3 -3 -3 ------------ Run | Scr Mat Min Exi Min Mat Gar Mat Gar Fac Gar Fac Gar Fac Gar Fac Gar Fac Gar Res Gar Qua Used RIF Installer 8 | . . . . . . 1 . 1 . 1 . 1 . 1 . 1 . 1 . 1 . Coupler Efficiency 1 | . . . . . . . . 1 . . . . . . . . . . . . . Threat Obfuscator 1 | . . . . . . . . . . . . . . . . . . 1 . . . Patrol Navigation 1 | . . . . . . . . . . . . 1 . . . . . . . . . Watcher Feeds 1 | . . . . . . . . . . 1 . . . . . . . . . . . Alert ID Control 1 | . . . . . . . . . . . . . . 1 . . . . . . . Structural Interface 1 | . . . . . . . . . . . . . . . . 1 . . . . . Autoassimilate 1 | . . . . . . . . . . . . . . . . . . . . 1 . Robots Hacked 103 | . . . . . . . 1 5 11 6 5 6 5 1 . . 14 16 13 16 4 Non-combat 19 | . . . . . . . . . 7 . 4 . 2 . . . 5 . 1 . . Combat 84 | . . . . . . . 1 5 4 6 1 6 3 1 . . 9 16 12 16 4 Autoassimilated 1 | . . . . . . . . . . . . . . . . . . . . 1 . Robot Hacks Applied 117 | . . . . . . . 2 6 11 7 6 6 5 1 . . 17 19 16 15 6 parse_system 1 | . . . . . . . . . . . . . . . . . 1 . . . . no_distress 4 | . . . . . . . . . 3 . 1 . . . . . . . . . . find_chute 3 | . . . . . . . . . 1 . 2 . . . . . . . . . . map_walls 1 | . . . . . . . . . . . . . 1 . . . . . . . . randomize_corridors 1 | . . . . . . . . . . . 1 . . . . . . . . . . drop_inventory 4 | . . . . . . . . . 1 . . . 1 . . . 2 . . . . locate_traps 1 | . . . . . . . . . 1 . . . . . . . . . . . . map_route 1 | . . . . . . . . . . . . . . . . . 1 . . . . relay_feed 1 | . . . . . . . . . 1 . . . . . . . . . . . . report_prototypes 1 | . . . . . . . . . . . . . . . . . . . . . 1 report_analyses 1 | . . . . . . . . . . . . . . . . . . . . . 1 find_garrison 4 | . . . . . . . 1 . . . . . 1 . . . 1 . 1 . . scatter_targeting 3 | . . . . . . . . . . . . . . . . . 1 . 2 . . mark_system 1 | . . . . . . . . . 1 . . . . . . . . . . . . amplify_resonance 3 | . . . . . . . . . . . . 1 . . . . . 2 . . . disable_weapons 2 | . . . . . . . . . . . . . . . . . . 1 1 . . reboot_system 1 | . . . . . . . . . . 1 . . . . . . . . . . . overwrite_iff 20 | . . . . . . . 1 2 2 2 . . . 1 . . 4 3 1 3 1 streamctrl_low 1 | . . . . . . . . . . . 1 . . . . . . . . . . streamctrl_high 8 | . . . . . . . . 2 . 2 . 1 . . . . 1 1 1 . . formatsys_low 4 | . . . . . . . . . . . . . . . . . 2 . 1 . 1 formatsys_high 51 | . . . . . . . . 2 1 2 1 4 2 . . . 4 12 9 12 2 Relay Couplers Released 95 | . . . . . . 13 . 3 . 9 . 18 . 15 . 4 3 15 4 11 . Machine Destruction 88 | . . . . . . 13 . 3 . 9 . 18 . 15 . 4 . 15 . 11 . Programmers 7 | . . . . . . . . . . . . . . . . . 3 . 4 . . Attached 50 | . . . . . . . 1 3 2 4 . 4 1 2 . 1 4 9 8 9 2 Robots Rewired 13 | . . . . . . . . . . . . 6 . 7 . . . . . . . Allies Hacked 7 | . . . . . . . . . 1 . . . . 1 . . 1 2 2 . . Hacks Repelled . | . . . . . . . . . . . . . . . . . . . . . . Allies | -11 -10 -10 -10 -9 -8 -8 -8 -8 -7 -7 -6 -6 -6 -6 -5 -5 -4 -4 -3 -3 -3 -------- Run | Scr Mat Min Exi Min Mat Gar Mat Gar Fac Gar Fac Gar Fac Gar Fac Gar Fac Gar Res Gar Qua Total Allies 99 | . . . . . 1 . 1 5 3 6 2 11 2 8 . . 14 15 11 16 4 Largest Group 7 | . . . . . 1 . 1 1 1 2 2 6 4 7 3 . 5 5 6 7 7 Highest-Rated Group 374 | . . . . . 27 . 5 18 21 64 43 151 133 245 114 . 250 201 310 374 360 Highest-Rated Ally 64 | . . . . . 27 . 5 18 21 32 32 41 41 41 41 . 56 56 64 64 64 Total Orders 12 | . . . . . . . . . . . 2 4 . 1 . . 2 2 1 . . STAY 4 | . . . . . . . . . . . . 2 . 1 . . . 1 . . . FOLLOW 4 | . . . . . . . . . . . . 2 . . . . 1 1 . . . AID 4 | . . . . . . . . . . . 2 . . . . . 1 . 1 . . Ally Attacks 575 | . . . . . . . 2 8 11 27 8 99 24 55 23 . 41 38 119 58 62 Total Damage 17806 | . . . . . . . 10 117 210 568 622 2254 1180 1796 973 . 1473 1109 3293 1892 2309 Kills 108 | . . . . . . . 1 3 2 5 2 24 8 16 4 . 10 4 9 10 10 Allies Corrupted 5 | . . . . . 1 . . . . . 1 . . . . . 1 . 2 . . Allies Melted 1 | . . . . . . . . . . . . . . . . . . . 1 . . Intel | -11 -10 -10 -10 -9 -8 -8 -8 -8 -7 -7 -6 -6 -6 -6 -5 -5 -4 -4 -3 -3 -3 ------- Run | Scr Mat Min Exi Min Mat Gar Mat Gar Fac Gar Fac Gar Fac Gar Fac Gar Fac Gar Res Gar Qua Robot Analysis Total 2 | . 2 . . . . . . . . . . . . . . . . . . . . Derelict Logs Recovered . | . . . . . . . . . . . . . . . . . . . . . . Drone Launches . | . . . . . . . . . . . . . . . . . . . . . . Drone Recoveries . | . . . . . . . . . . . . . . . . . . . . . . Exploration | -11 -10 -10 -10 -9 -8 -8 -8 -8 -7 -7 -6 -6 -6 -6 -5 -5 -4 -4 -3 -3 -3 ------------- Run | Scr Mat Min Exi Min Mat Gar Mat Gar Fac Gar Fac Gar Fac Gar Fac Gar Fac Gar Res Gar Qua Turns Passed 30896 | 126 1466 292 675 630 1171 1941 1662 1101 1139 1235 713 2106 856 3802 811 2303 1914 3916 1312 1539 186 Spaces Moved 14058 | 59 794 234 535 358 611 882 862 667 775 727 441 1059 502 1376 422 396 993 774 673 795 123 Core 12 | 2 . . . . . . . . . . . . . . . . . . 1 . 9 Treads 1615 | 54 639 . 2 . . 4 . . . . . . . . . . . 31 90 795 . Legs . | . . . . . . . . . . . . . . . . . . . . . . Wheels 12431 | 3 155 234 533 358 611 878 862 667 775 727 441 1059 502 1376 422 396 993 743 582 . 114 Hover . | . . . . . . . . . . . . . . . . . . . . . . Flight . | . . . . . . . . . . . . . . . . . . . . . . Fastest Speed 50 | 50 110 110 110 160 130 140 125 120 130 130 120 120 126 126 140 133 130 130 110 160 50 Average Speed 142 | 152 152 110 121 169 159 169 140 123 130 136 122 128 130 134 142 148 147 149 140 173 114 Slowest Speed 1950 | 160 180 110 200 170 200 265 170 130 140 180 140 130 150 150 250 220 240 260 1950 180 130 Overloaded Moves . | . . . . . . . . . . . . . . . . . . . . . . Propulsion Burnouts . | . . . . . . . . . . . . . . . . . . . . . . Robots Hopped . | . . . . . . . . . . . . . . . . . . . . . . Cave-ins Triggered 1 | . . . . . . . . 1 . . . . . . . . . . . . . Teleports 1 | . . . . . . . . . . . . . . . . . . . . . 1 Exploration Rate (%) 50 | 6 97 31 79 47 31 82 47 53 19 75 11 88 18 89 9 56 26 92 17 87 47 Regions Visited 21 Branch Regions 4 Pre-discovered Areas 1 | . . . 1 . . . . . . . . . . . . . . . . . . Known Exits Taken 8 | . . . . . 1 . 1 . 1 . 1 . 1 . 1 . 1 . 1 . . Unknown Exits Taken 5 | 1 1 1 1 1 . . . . . . . . . . . . . . . . . Scrap Searched 1 | . . . . 1 . . . . . . . . . . . . . . . . . Spaces Dug 33 | . . . . . . . . . . . . 4 . 12 1 . 3 . 13 . . Terrain Destroyed 624 | 2 43 . . . 12 26 5 18 . 76 1 30 3 62 14 183 66 11 72 . . Melee 20 | . . . . . . . . . . . . 4 . 12 1 . 3 . . . . Projectile 46 | . . . . . . 2 5 . . . 1 . 1 . 5 9 19 1 3 . . AOE 558 | 2 43 . . . 12 24 . 18 . 76 . 26 2 50 8 174 44 10 69 . . Terrain Rammed . | . . . . . . . . . . . . . . . . . . . . . . Walls Destroyed . | . . . . . . . . . . . . . . . . . . . . . . Machines Disabled . | . . . . . . . . . . . . . . . . . . . . . . Actions | -11 -10 -10 -10 -9 -8 -8 -8 -8 -7 -7 -6 -6 -6 -6 -5 -5 -4 -4 -3 -3 -3 --------- Run | Scr Mat Min Exi Min Mat Gar Mat Gar Fac Gar Fac Gar Fac Gar Fac Gar Fac Gar Res Gar Qua Total 23657 | 80 944 253 560 378 755 1214 1187 920 872 912 593 1717 681 3231 551 1994 1340 3463 903 946 163 Wait 7128 | 1 44 6 . 4 54 132 179 153 20 46 89 376 128 1595 40 1436 200 2537 34 54 . Move 14042 | 58 793 233 534 357 610 881 862 666 775 726 441 1058 502 1375 422 395 992 773 672 794 123 Hop . | . . . . . . . . . . . . . . . . . . . . . . Pick Up 354 | 6 18 2 18 9 20 36 27 11 12 9 9 36 10 24 14 17 19 21 16 16 4 Fast Attach 62 | 7 . . . . 6 . 3 2 3 2 . 1 3 2 3 5 2 2 11 10 . Attach 136 | 1 4 1 1 . 4 6 8 4 4 5 2 1 2 4 11 7 6 19 32 10 4 Detach 31 | 1 . . . . 3 2 . 3 2 1 . 1 2 1 1 1 . 2 6 5 . Swap 263 | . 11 . 3 2 10 24 14 9 10 19 9 27 3 23 5 16 27 15 23 9 4 Drop 223 | . 8 1 4 4 16 16 17 3 9 5 7 35 5 31 4 13 15 5 8 11 6 Fire 944 | 6 60 10 . 2 29 85 65 19 29 40 28 94 26 62 47 66 72 72 90 28 14 Melee 91 | . . . . . . . 9 11 8 11 . 13 . 19 4 . 7 . 8 1 . Ram 7 | . 2 . . . 3 . 1 . . . . . . . . . . . 1 . . Kick . | . . . . . . . . . . . . . . . . . . . . . . Crush 5 | . 4 . . . . . . . . . . . . . . . . . 1 . . Escape Stasis 269 | . . . . . . 32 . 32 . 48 8 40 . 48 . 31 . 16 . 6 8 Rewire 93 | . . . . . . . . . . . . 35 . 47 . 7 . 1 1 2 . Trap 9 | . . . . . . . 2 7 . . . . . . . . . . . . . Miscellaneous . | . . . . . . . . . . . . . . . . . . . . . . Route ------- -11/Scrapyard -10/Materials (discovered 4 exits: [*Mat x3] / *Min) -10/Mines (discovered 2 exits: [*Mat] / *Exi) -10/Exiles (discovered 2 exits: *Min x2) -9/Mines -8/Materials (discovered 3 exits: *Fac / [*Sto] / Gar) -8/Garrison (discovered 3 exits: *Mat x3) -8/Materials (discovered 4 exits: *Fac / [*Sto x2] / Gar) -8/Garrison (discovered 2 exits: *Fac x2) -7/Factory (discovered 3 exits: *Fac / [*Low] / Gar) -7/Garrison (discovered 3 exits: *Fac x3) -6/Factory (discovered 2 exits: [*Low] / Gar) -6/Garrison (discovered 3 exits: *Fac x3) -6/Factory -6/Garrison (discovered 3 exits: *Fac x3) -5/Factory -5/Garrison -4/Factory (discovered 4 exits: *Res / [*Upp] / Gar / Gar) -4/Garrison (discovered 3 exits: *Res x3) -3/Research (discovered 2 exits: [*Res] / Gar) -3/Garrison (discovered 3 exits: [*Qua x3]) -3/Quarantine History --------- Turn | Location | Event 18 | -11/Scrapyard | Discovered new exit (range 14) 127 | -11/Scrapyard | Entered Materials 335 | -10/Materials | Build established: Mutant 711 | -10/Materials | Discovered new exit (range 15) 711 | -10/Materials | Discovered new exit (range 20) 1138 | -10/Materials | Discovered new exit (range 13) 1192 | -10/Materials | Lost 3 parts (1n2w) 1424 | -10/Materials | Repaired Lgt. Treads 1525 | -10/Materials | Discovered new exit (range 8) 1593 | -10/Materials | Entered Mines 1593 | -10/Mines | Discovered new exit (range 12) 1645 | -10/Mines | Discovered new exit (range 13) 1718 | -10/Mines | Core integrity fell below 50% 1879 | -10/Mines | Deemed a non-threat by the Exiles lab entrance 1885 | -10/Mines | Entered Exiles 1903 | -10/Exiles | Discovered new exit (range 15) 1913 | -10/Exiles | Met 8R-AWN 1931 | -10/Exiles | Met EX-HEX 1989 | -10/Exiles | Met EX-DEC 2013 | -10/Exiles | Visited The Gauntlet 2071 | -10/Exiles | Learned location of Zion (-6) 2131 | -10/Exiles | Discovered new exit (range 12) 2301 | -10/Exiles | Met EX-BIN 2316 | -10/Exiles | Aligned with FarCom system 2318 | -10/Exiles | Given EX-Vault access code 2353 | -10/Exiles | Opened EX-Vault 2363 | -10/Exiles | Found Gui. Plasma Cannon 2392 | -10/Exiles | Warned to stay clear of 0b10 Research branches 2560 | -10/Exiles | Left Exiles lab with Gui. Plasma Cannon 2560 | -10/Exiles | Entered Mines 2597 | -9/Mines | Met a Derelict who couldn't figure out how to use a Trap Extractor 2662 | -9/Mines | Received a Rocket Launcher from a helpful Derelict 2738 | -9/Mines | Discovered new exit (range 9) 2797 | -9/Mines | Build established: Hauler-Mutant 2933 | -9/Mines | Found a hidden stash of uninstalled traps 3123 | -9/Mines | A weapon hastily lodged in a ceiling crevice suddenly fell to the ground 3190 | -9/Mines | Entered Materials 3190 | -8/Materials | Evolved 4 slots: Utility x4 3269 | -8/Materials | Identified exit to Garrison 3631 | -8/Materials | Discovered new exit (range 15) 3738 | -8/Materials | Discovered new exit (range 8) 3911 | -8/Materials | Repaired Wheel 4361 | -8/Materials | Entered Garrison 4408 | -8/Garrison | Triggered checkpoint 4478 | -8/Garrison | Triggered checkpoint 4643 | -8/Garrison | Discovered new exit (range 9) 4667 | -8/Garrison | Installed Relay Interface Framework 4834 | -8/Garrison | Triggered checkpoint 4874 | -8/Garrison | Triggered checkpoint 4955 | -8/Garrison | Discovered new exit (range 11) 5040 | -8/Garrison | Triggered checkpoint 5093 | -8/Garrison | Garrison Relay disabled 5319 | -8/Garrison | Discovered new exit (range 14) 5668 | -8/Garrison | Lost 3 parts (2p1w) 5670 | -8/Garrison | Triggered checkpoint 5686 | -8/Garrison | Garrison Relay disabled 5986 | -8/Garrison | Build established: Bothacker-Mutant 6140 | -8/Garrison | Triggered checkpoint 6169 | -8/Garrison | Garrison Relay disabled 6302 | -8/Garrison | Entered Materials 7062 | -8/Materials | Repaired Broken Adv. Terrain Scanner 7270 | -8/Materials | Discovered new exit (range 10) 7402 | -8/Materials | Core integrity fell below 50% 7402 | -8/Materials | System corruption reached 10% 7779 | -8/Materials | Discovered new exit (range 14) 7805 | -8/Materials | Discovered new exit (range 15) 7902 | -8/Materials | First assault squad dispatched 7937 | -8/Materials | Lost 3 parts (2n1w) 7964 | -8/Materials | Identified exit to Garrison 7964 | -8/Materials | Entered Garrison 8052 | -8/Garrison | Triggered checkpoint 8063 | -8/Garrison | Core integrity fell below 20% 8087 | -8/Garrison | Garrison Relay disabled 8300 | -8/Garrison | Triggered checkpoint 8362 | -8/Garrison | Discovered new exit (range 9) 8652 | -8/Garrison | Triggered checkpoint 8674 | -8/Garrison | Crushed by falling debris 8683 | -8/Garrison | Discovered new exit (range 14) 8709 | -8/Garrison | Expanded RIF knowledge: Coupler Efficiency 9065 | -8/Garrison | Entered Factory 9065 | -7/Factory | Accompanied by 1 ally 9065 | -7/Factory | Evolved 2 slots: Utility x2 9376 | -7/Factory | Build established: Bothacker-Assassin 9455 | -7/Factory | Discovered new exit (range 14) 9618 | -7/Factory | Discovered new exit (range 10) 9749 | -7/Factory | Build established: Bothacker-Mutant 10204 | -7/Factory | Identified exit to Garrison 10204 | -7/Factory | Entered Garrison 10204 | -7/Garrison | Accompanied by 1 ally 10355 | -7/Garrison | Triggered checkpoint 10612 | -7/Garrison | Triggered checkpoint 10708 | -7/Garrison | Discovered new exit (range 11) 10733 | -7/Garrison | Expanded RIF knowledge: Patrol Navigation 10820 | -7/Garrison | Triggered checkpoint 10930 | -7/Garrison | Triggered checkpoint 10999 | -7/Garrison | Discovered new exit (range 12) 11042 | -7/Garrison | Triggered checkpoint 11097 | -7/Garrison | Garrison Relay disabled 11302 | -7/Garrison | Discovered new exit (range 15) 11439 | -7/Garrison | Entered Factory 11439 | -6/Factory | Evolved 2 slots: Propulsion x1, Utility x1 11510 | -6/Factory | Discovered new exit (range 15) 12152 | -6/Factory | Identified exit to Garrison 12152 | -6/Factory | Entered Garrison 12471 | -6/Garrison | Triggered checkpoint 12529 | -6/Garrison | Garrison Relay disabled 12634 | -6/Garrison | Triggered checkpoint 13215 | -6/Garrison | Garrison Relay disabled 13346 | -6/Garrison | Spotted B-75 Beast 13365 | -6/Garrison | Allies destroyed B-75 Beast 13372 | -6/Garrison | Triggered checkpoint 13390 | -6/Garrison | Triggered checkpoint 13418 | -6/Garrison | Triggered checkpoint 13626 | -6/Garrison | Triggered checkpoint 13654 | -6/Garrison | Garrison Relay disabled 13690 | -6/Garrison | Discovered new exit (range 15) 13719 | -6/Garrison | Expanded RIF knowledge: Watcher Feeds 13840 | -6/Garrison | Triggered checkpoint 13875 | -6/Garrison | Garrison Relay disabled 13924 | -6/Garrison | Discovered new exit (range 10) 14019 | -6/Garrison | Build established: Botlord-Mutant 14072 | -6/Garrison | Discovered new exit (range 7) 14158 | -6/Garrison | Triggered checkpoint 14173 | -6/Garrison | Garrison Relay disabled 14258 | -6/Garrison | Entered Factory 14258 | -6/Factory | Accompanied by 4 allies 15112 | -6/Factory | Identified exit to Garrison 15114 | -6/Factory | Entered Garrison 15114 | -6/Garrison | Accompanied by 1 ally 15393 | -6/Garrison | Lost 3 parts (1u2w) 15633 | -6/Garrison | Build established: Hauler-Mutant 17237 | -6/Garrison | Garrison Relay disabled 17258 | -6/Garrison | Triggered checkpoint 17313 | -6/Garrison | Discovered new exit (range 30) 17366 | -6/Garrison | Triggered checkpoint 17368 | -6/Garrison | Triggered checkpoint 17404 | -6/Garrison | Triggered checkpoint 17452 | -6/Garrison | Discovered new exit (range 9) 17475 | -6/Garrison | Expanded RIF knowledge: Alert ID Control 17506 | -6/Garrison | Triggered checkpoint 17515 | -6/Garrison | Garrison Relay disabled 17672 | -6/Garrison | Discovered new exit (range 10) 17708 | -6/Garrison | Triggered checkpoint 17732 | -6/Garrison | Garrison Relay disabled 17802 | -6/Garrison | Triggered checkpoint 17896 | -6/Garrison | Triggered checkpoint 17941 | -6/Garrison | Garrison Relay disabled 18916 | -6/Garrison | Entered Factory 18916 | -5/Factory | Accompanied by 3 allies 18916 | -5/Factory | Evolved 2 slots: Utility x2 19304 | -5/Factory | Garrison activated, responded to threat 19488 | -5/Factory | P-70 Sage assimilated allied Guardian 5e 19516 | -5/Factory | First assault squad dispatched 19614 | -5/Factory | Garrison activated, responded to threat 19643 | -5/Factory | Destroyed 7 combat bots 19676 | -5/Factory | Lost 10 parts (5n2u3w) 19727 | -5/Factory | Identified exit to Garrison 19727 | -5/Factory | Entered Garrison 19735 | -5/Garrison | Expanded RIF knowledge: Structural Interface 19779 | -5/Garrison | Phase Generator disabled 21257 | -5/Garrison | Garrison Relay disabled 21288 | -5/Garrison | Triggered checkpoint 21561 | -5/Garrison | Core integrity fell below 50% 21714 | -5/Garrison | Triggered checkpoint 21774 | -5/Garrison | Discovered new exit (range 13) 22030 | -5/Garrison | Entered Factory 22030 | -4/Factory | Evolved 2 slots: Utility x2 22169 | -4/Factory | Identified exit to Garrison 22560 | -4/Factory | Discovered new exit (range 14) 22932 | -4/Factory | Build established: Botlord-Mutant 23043 | -4/Factory | Discovered new exit (range 11) 23825 | -4/Factory | Identified exit to Garrison 23944 | -4/Factory | Entered Garrison 23944 | -4/Garrison | Accompanied by 4 allies 24086 | -4/Garrison | Garrison Relay disabled 24156 | -4/Garrison | Spotted B-86 Titan 24168 | -4/Garrison | Triggered checkpoint 24185 | -4/Garrison | Triggered checkpoint 24253 | -4/Garrison | Lost 6 parts (1p3n1u1w) 24316 | -4/Garrison | Core integrity fell below 50% 24321 | -4/Garrison | System corruption reached 10% 24325 | -4/Garrison | Triggered checkpoint 24348 | -4/Garrison | Lost 8 parts (1p4n2u1w) 24390 | -4/Garrison | Allies destroyed B-86 Titan 24751 | -4/Garrison | Discovered new exit (range 10) 24775 | -4/Garrison | Expanded RIF knowledge: Threat Obfuscation 27290 | -4/Garrison | Garrison Relay disabled 27466 | -4/Garrison | Discovered new exit (range 3) 27512 | -4/Garrison | Triggered checkpoint 27559 | -4/Garrison | Garrison Relay disabled 27726 | -4/Garrison | Triggered checkpoint 27756 | -4/Garrison | Garrison Relay disabled 27829 | -4/Garrison | Discovered new exit (range 13) 27860 | -4/Garrison | Entered Research 27860 | -3/Research | Accompanied by 5 allies 27860 | -3/Research | Evolved 2 slots: Utility x2 27869 | -3/Research | Spotted B-86 Titan 27892 | -3/Research | Destroyed B-86 Titan 27902 | -3/Research | Found Unknown Launcher 27902 | -3/Research | Identified Fusion Bomb Launcher 27921 | -3/Research | Found Hvy. Reflective Plating 28260 | -3/Research | P-80 Master assimilated allied Warrior 7c 28272 | -3/Research | Garrison activated, responded to threat 28281 | -3/Research | Identified exit to Garrison 28378 | -3/Research | Discovered new exit (range 4) 28590 | -3/Research | P-80 Master assimilated allied Assassin 8a 28616 | -3/Research | System corruption reached 10% 28669 | -3/Research | Lost 7 parts (2n3u2w) 28735 | -3/Research | System corruption reached 30% 28820 | -3/Research | Core integrity fell below 50% 28852 | -3/Research | Lost 19 parts (2p4n9u4w) 29038 | -3/Research | Lost 6 parts (2n2u2w) 29172 | -3/Research | Entered Garrison 29173 | -3/Garrison | Core integrity fell below 20% 29201 | -3/Garrison | Lost 4 parts (1p1u2w) 29284 | -3/Garrison | Triggered checkpoint 29337 | -3/Garrison | Garrison Relay disabled 29640 | -3/Garrison | Triggered checkpoint 29645 | -3/Garrison | Triggered checkpoint 29704 | -3/Garrison | Triggered checkpoint 29820 | -3/Garrison | Discovered new exit (range 14) 29920 | -3/Garrison | Triggered checkpoint 30033 | -3/Garrison | Discovered new exit (range 5) 30054 | -3/Garrison | Expanded RIF knowledge: Autoassimilate 30110 | -3/Garrison | Triggered checkpoint 30137 | -3/Garrison | Garrison Relay disabled 30413 | -3/Garrison | Discovered new exit (range 7) 30544 | -3/Garrison | Triggered checkpoint 30622 | -3/Garrison | Garrison Relay disabled 30711 | -3/Garrison | Entered Quarantine 30711 | -3/Quarantine | Accompanied by 6 allies 30712 | -3/Quarantine | Maximum security lockdown engaged 30799 | -3/Quarantine | Found Alien Artifact 30812 | -3/Quarantine | Identified Transdimensional Reconstructor 30866 | -3/Quarantine | Warped through subspace 30893 | -3/Quarantine | Released all parts (16) 30897 | -3/Quarantine | Destroyed by G-73 Enforcer with Phase Gun Last Messages --------------- 30893_ Released Relay Coupler [NC]. 30893_ >> Watcher Feeds: All visual feed links lost. 30893_ Released Relay Coupler [Behemoth]. 30893_ Released Relay Coupler [Sentry]. 30893_ Released Lrg. Storage Unit. 30893_ Released Relay Coupler [Swarmer]. 30893_ Released Lrg. Storage Unit. 30893_ Released Relay Coupler [Duelist]. 30893_ Released Adv. Target Analyzer. 30893_ Released Imp. Remote Datajack. 30893_ Released Relay Coupler [Hunter]. 30893_ Released Relay Coupler [Grunt]. 30893_ Released Com. Wheel. 30895_ System corrupted: Energy discharge (-31). 30895_ P-80 Master resets B-74 Champion, system corruption cleaned. 30897_ C-30 ARC bursts open, deploying its payload. 30897_ G-73 Enforcer unfolds itself. 30897_ L-61 Swordsman unfolds itself. 30897_ G-67 Veteran unfolds itself. 30897_ M-36 Artificer unfolds itself. Map ----- +----------------------------------------------------+ | ?????????????????????????????????????????????????? | | ?????????????????????????????????????????????????? | | ?????????????????????????????????????????????????? | | ?????????????????????????????????????????????????? | | ?????????????????????????????????????????????????? | | ?????????????????????????????????????????????????? | | ?????????????????????????????????????????????????? | | ?????????????????????????????????????????????????? | | ?????????????????????????????????????????????????? | | ?????????????????????????????????????????????????? | | ?????????????????????????????????????????????????? | | ???????????????????????????? ???????????????????? | | ??????????????????????????? ???????????????????? | | ?????????????????????????? ???????????????????? | | ??????????????????????Y??# ???????????????????? | | ??????????????????????Y??" o????????????????????? | | ??????????????????????Y??T ????????????????????? | | ???????Y?????????????????" [????????????????????? | | ?????????????????????????# ?????????????????????? | | ?????????????????????????# ?????????????????????? | | ???????????????#########?# #?????????????????????? | | ?????????????# #?# #?????????????????????? | | ?????????????# """ """ ###w##????????????????????? | | ?????????????# "&" "&" # #????????????????????? | | ?????????????# """ """ # #????????????????????? | | ?????????????# ""T"" # @ #????????????????????? | | ?????????##??# e #????????????????????? | | ?????????+ ?+ # #????????????????????? | | ?????????# # p # ###########??????????? | | ?????????# ######l####h # #??????????? | | ?????????# !!!!=*bp gg # ! = #??????????? | | ?????????+ ]!==*gb g g # #??????????? | | ?????????# !!!!!= # """"" #??????????? | | ?????????# ]/| + """"" !#??????????? | | ?????????#### ########## % # """"" #??????????? | | ????????????# ?????????# l # """"" #??????????? | | ????????????#???########g # #??????????? | | ????????????????# mgg #################????? | | ????????????????# m #???# d #????? | | ????????????????# w##### #????? | | ????????????????# = "%" + #????? | | ????????????????# ############ ###### | | ???????########## #??????????# """ """ + | | ???????# # #??????????# """"""""" ###### | | ???????# # #??????????# % #????? | | ???????? # #################+########### | | ????????? """" # =[=%!!!!%[* | | ???????? """" + *=[%|%|!*=[! | | ???????? """" # !*=%[ =!!%!%=[ | | ???????? """" # ! =%*%=*===!= | +----------------------------------------------------+ Best States ------------- Heat Dissipation 74 Energy Generation 23 Energy Capacity 1170 Matter Stores 300 Matter Capacity 300 Sight Range 16 Terrain Scan Range 20 Terrain Scan Density 110 Armor Coverage 900 Resistance: TH 30 Core Shielding 20 Evasion (%) 40 Target Analysis 8 Recoil Reduction 3 Offensive Hacking 10 Relay Coupler Types 207 Relay Coupler Value 7 Item Schematics ----------------- None Robot Schematics ------------------ None Fabricated ------------ Nothing Alien Tech Used ----------------- Transdimensional Reconstructor Achievements -------------- Hehehe Challenges ------------ None Game ------ Seed ChainTrackerMachine Manual? 0 Play Time 04:54:01 Cumulative 179.8 hours Start 2020.10.05 @ 22:18:53 End 2020.10.06 @ 23:18:44 Sessions 3 Manual Loads 0 Difficulty Rogue Special Mode None Game No. 99 Rogue 99 Adventurer 0 Explorer 0 Win Type - Total 4 Types 3/0/1/0/0/0/0/0/0 Lore% 59 Gallery% 76 Achievement% 61 Wizard Run 0 Options --------- ASCII 1 Keyboard 1 Movement Numpad Keybinds 0 Fullscreen 2 Font 18/Terminus Map View 76x50 Tactical HUD 1 Map Filters NONE Filters NONE Steam 1 RUN: 886e2fc2-93af-49d4-95ea-122bb0a40629